bitfinex-derivatives/quotes_ETHF0:USTF0_20240927
["timestamp","ask_amount","ask_price","bid_price","bid_amount"]
[1727474411953,2.5975,2695.3,2695.2,15.73036771]
[1727474412550,0.97353526,2695.5,2695.4,0.3709]
[1727474412857,0.97353526,2695.5,2695.4,1.50783607]
[1727474413158,0.97325315,2695.5,2695.4,0.3709]
[1727474413349,0.97323668,2695.5,2695.4,2.26141663]
[1727474414356,0.97323668,2695.5,2695.4,3.71866584]
[1727474414555,0.97323668,2695.5,2695.4,2.26141663]
[1727474415248,0.97323668,2695.5,2695.4,1.89051663]
[1727474415559,0.97323668,2695.5,2695.4,3.34772448]
[1727474418147,0.97323668,2695.5,2695.4,3.34729115]
[1727474418951,4.18103668,2695.5,2695.4,3.34729115]
[1727474420054,4.18103668,2695.5,2695.4,1.8900833]
[1727474420557,4.18103668,2695.5,2695.4,3.34729115]
[1727474421767,4.18103668,2695.5,2695.4,1.8900833]
[1727474421959,0.97323668,2695.5,2695.4,1.8900833]
[1727474422155,0.97323668,2695.6,2695.4,3.34729115]
[1727474422354,0.97323668,2695.6,2695.5,1.1358833]
[1727474422559,0.97323668,2695.6,2695.5,1.5050833]
[1727474422758,0.97323668,2695.6,2695.5,2.96229115]
[1727474423065,0.97323668,2695.6,2695.5,1.50465507]
[1727474424666,0.97323668,2695.6,2695.5,0.3692]
[1727474432065,0.97323668,2695.6,2695.5,0.74009]
[1727474432468,0.97323668,2695.7,2695.5,0.3692]
[1727474432666,0.97323668,2695.6,2695.5,0.3692]
[1727474432873,0.97323668,2695.7,2695.5,1.50452092]
[1727474433062,0.97323668,2695.7,2695.5,0.3692]
[1727474433366,0.97323668,2695.6,2695.5,0.3692]
[1727474433571,0.97323668,2695.7,2695.5,0.3692]
[1727474433959,1.34409668,2695.7,2695.5,0.3692]
[1727474434365,0.97323668,2695.6,2695.5,0.3692]
[1727474434560,1.34409668,2695.7,2695.5,0.3692]
[1727474434765,0.97323668,2695.6,2695.5,0.3692]
[1727474436169,1.34409668,2695.7,2695.5,0.3692]
[1727474436373,0.97323668,2695.7,2695.5,0.3692]
[1727474436566,0.97323668,2695.7,2695.5,0.74009]
[1727474437162,0.97323668,2695.7,2695.5,1.82640785]
[1727474438563,0.97323668,2695.7,2695.5,0.3692]
[1727474438769,1.34410668,2695.7,2695.5,0.3692]
[1727474439471,1.34410668,2695.7,2695.5,1.82640785]
[1727474439676,1.34410668,2695.7,2695.5,0.3692]
[1727474440280,0.97323668,2695.6,2695.5,0.3692]
[1727474440471,0.97323668,2695.6,2695.5,1.50467073]
[1727474441881,1.34410668,2695.7,2695.5,2.96187858]
[1727474442078,1.34411668,2695.6,2695.5,0.3692]
[1727474442375,0.97323668,2695.6,2695.5,1.50525165]
[1727474442790,0.97323668,2695.6,2695.5,0.3692]
[1727474443571,0.97323668,2695.6,2695.5,2.96255659]
[1727474447571,0.97323668,2695.6,2695.5,2.96284332]
[1727474452386,0.97323668,2695.6,2695.5,2.96311362]
[1727474453483,0.97323668,2695.6,2695.5,1.50590577]
[1727474454281,1.83119881,2695.7,2695.5,2.96415532]
[1727474454490,0.37087,2695.7,2695.6,2.59495532]
[1727474454785,1.8307714,2695.7,2695.6,2.59495532]
[1727474455281,0.37087,2695.7,2695.6,2.59495532]
[1727474456088,2.7049022,2695.7,2695.6,2.59495532]
[1727474457088,2.7049022,2695.7,2695.6,1.13670577]
[1727474457385,0.37088,2695.6,2695.5,1.45915328]
[1727474457584,0.73728,2695.6,2695.5,2.596723]
[1727474458781,3.94508,2695.6,2695.5,2.596723]
[1727474459189,0.73728,2695.6,2695.5,2.596723]
[1727474459494,3.94508,2695.6,2695.5,2.596723]
[1727474460980,3.94508,2695.6,2695.5,2.59673678]
[1727474461794,5.8860122,2695.6,2695.5,2.59673678]
[1727474461996,3.94508,2695.6,2695.5,2.59673678]
[1727474462589,5.8860122,2695.6,2695.5,2.59673678]
[1727474463278,5.5151322,2695.6,2695.5,2.59673678]
[1727474463687,5.8860122,2695.6,2695.5,2.59673678]
[1727474464690,5.5151322,2695.6,2695.5,2.59673678]
[1727474465279,5.8860122,2695.6,2695.5,2.59673678]
[1727474465679,5.8860122,2695.6,2695.5,1.1375835]
[1727474465884,5.8860122,2695.6,2695.5,2.59673678]
[1727474466080,5.8860122,2695.6,2695.5,1.1375835]
[1727474466592,5.5151322,2695.6,2695.5,1.1375835]
[1727474466788,5.5151322,2695.6,2695.5,2.59673678]
[1727474467494,5.5151322,2695.6,2695.5,1.5084735]
[1727474467701,5.5151322,2695.6,2695.5,1.1375835]
[1727474468592,5.5151322,2695.6,2695.5,2.59673678]
[1727474470188,5.8860122,2695.6,2695.5,2.59673678]
[1727474470389,5.5151322,2695.6,2695.5,2.59673678]
[1727474470589,5.5151322,2695.6,2695.5,2.59724387]
[1727474472800,2.3073322,2695.6,2695.5,2.59724387]
[1727474472998,5.5151322,2695.6,2695.5,2.59724387]
[1727474473498,5.8860122,2695.6,2695.5,0.97324123]
[1727474474200,5.8860122,2695.6,2695.5,2.11140831]
[1727474474400,5.5151322,2695.6,2695.5,0.97324123]
[1727474474600,5.5151322,2695.6,2695.5,2.11133724]
[1727474474802,5.5151322,2695.6,2695.5,1.34413123]
[1727474480401,5.8860122,2695.6,2695.5,1.34413123]
[1727474481308,5.5151322,2695.6,2695.5,1.34413123]
[1727474481504,5.5151322,2695.6,2695.5,0.37089]
[1727474481805,5.5151322,2695.6,2695.5,1.34413123]
[1727474482211,5.5151322,2695.6,2695.5,0.37089]
[1727474482411,5.5151322,2695.6,2695.5,1.34413123]
[1727474487206,5.5151322,2695.6,2695.5,0.97324123]
[1727474487207,5.8860122,2695.6,2695.5,0.97324123]
[1727474487897,5.8860122,2695.6,2695.5,1.34413123]
[1727474489314,5.5151322,2695.6,2695.5,1.34413123]
[1727474490804,5.8860122,2695.6,2695.5,1.34413123]
[1727474492412,5.8860122,2695.6,2695.5,0.37089]
[1727474492604,5.89135247,2695.6,2695.5,0.37089]
[1727474492810,5.89135247,2695.6,2695.5,1.34413123]
[1727474494016,5.89135247,2695.6,2695.5,0.97324123]
[1727474494917,5.89135247,2695.6,2695.5,1.34413123]
[1727474495417,2.31267247,2695.6,2695.5,2.48234182]
[1727474495620,5.89135247,2695.6,2695.5,1.34413123]
[1727474497421,5.89135247,2695.6,2695.5,0.97324123]
[1727474497616,3.94508,2695.6,2695.5,0.97324123]
[1727474497823,5.89157466,2695.6,2695.5,0.97324123]
[1727474498023,5.89157466,2695.6,2695.5,1.34413123]
[1727474499027,6.29567466,2695.6,2695.5,1.34413123]
[1727474499329,4.34918,2695.6,2695.5,1.34413123]
[1727474500025,6.29590671,2695.6,2695.5,1.34413123]
[1727474500226,6.29590671,2695.6,2695.5,2.48257388]
[1727474500425,6.29590671,2695.6,2695.5,2.48290912]
[1727474500731,6.29590671,2695.6,2695.5,1.50933265]
[1727474501224,6.29590671,2695.6,2695.5,2.48290378]
[1727474501526,6.29590671,2695.6,2695.5,1.50933265]
[1727474503532,6.29590671,2695.6,2695.5,2.96848593]
[1727474505135,6.29590671,2695.6,2695.5,2.96869637]
[1727474506332,3.08810671,2695.6,2695.5,2.96869637]
[1727474506536,6.29590671,2695.6,2695.5,2.59780637]
[1727474506740,6.29590671,2695.6,2695.5,1.13865309]
[1727474507132,6.29590671,2695.6,2695.5,2.59780637]
[1727474509838,6.29590671,2695.6,2695.5,2.59792877]
[1727474510647,6.29590671,2695.6,2695.5,2.96881877]
[1727474510837,6.29590671,2695.6,2695.5,2.59792877]
[1727474512236,4.34918,2695.6,2695.5,2.59792877]
[1727474512542,6.29593354,2695.6,2695.5,2.59792877]
[1727474512743,6.29593354,2695.6,2695.5,3.09183568]
[1727474513336,6.29593354,2695.6,2695.5,2.59792877]
[1727474513747,6.29593354,2695.6,2695.5,3.09183833]
[1727474514544,6.29593354,2695.6,2695.5,3.46272833]
[1727474515247,4.34918,2695.6,2695.5,2.97743299]
[1727474515742,4.34918,2695.6,2695.5,1.8386575]
[1727474515936,4.34918,2695.6,2695.5,2.97749436]
[1727474516339,4.34918,2695.6,2695.5,2.60660436]
[1727474516643,8.11534526,2695.6,2695.5,2.60660436]
[1727474516850,8.11534526,2695.6,2695.5,0.97385794]
[1727474517146,8.11534526,2695.6,2695.5,1.46778812]
[1727474517844,8.11534526,2695.6,2695.5,0.97385794]
[1727474519547,12.75214526,2695.6,2695.5,0.97385794]
[1727474519740,0.37092,2695.3,2695.2,0.97385794]
[1727474519941,0.37093,2695.2,2695.1,0.97385794]
[1727474520145,0.37093,2695.2,2695.0,1.37265794]
[1727474520146,0.37095,2695.1,2695.0,1.37265794]
[1727474520449,4.14402849,2695.1,2695.0,1.37265794]
[1727474521140,1.71095,2695.1,2695.0,0.3988]
[1727474522144,0.37096,2695.0,2694.9,0.97385794]
[1727474522352,6.37709092,2695.0,2694.9,0.97385794]
[1727474523149,10.20335131,2695.0,2694.7,0.97385794]
[1727474523346,10.20335131,2695.0,2694.6,1.34765794]
[1727474523347,2.79767357,2694.8,2694.6,1.34765794]
[1727474523651,8.0825,2694.7,2694.6,0.3738]
[1727474523855,0.37104,2694.4,2694.3,0.97385794]
[1727474524152,4.54963227,2694.4,2694.2,0.3877]
[1727474524348,2.31079227,2694.3,2694.2,0.3877]
[1727474525246,1.34,2694.3,2694.2,0.3877]
[1727474526448,4.17859227,2694.4,2694.2,0.3877]
[1727474526646,1.31579227,2694.8,2694.3,6.919]
[1727474526850,0.345,2694.8,2694.7,0.371]
[1727474527052,4.5478,2694.9,2694.7,0.371]
[1727474527453,4.5478,2694.9,2694.8,0.3801]
[1727474527659,4.5478,2694.9,2694.8,0.75109]
[1727474527858,4.5478,2694.9,2694.8,0.3801]
[1727474529846,4.5478,2694.9,2694.8,0.75109]
[1727474531154,1.34,2694.9,2694.8,0.75109]
[1727474531556,4.5478,2694.9,2694.8,0.3801]
[1727474532058,4.5478,2694.9,2694.8,0.75109]
[1727474533456,4.5478,2694.9,2694.8,0.3801]
[1727474533658,4.5478,2694.9,2694.7,0.371]
[1727474533659,8.62918,2694.9,2694.5,0.97385794]
[1727474533858,4.5478,2694.6,2694.3,0.76185]
[1727474534057,1.34,2694.4,2694.3,0.76185]
[1727474535463,1.7101,2694.5,2694.4,0.37104]
[1727474537467,1.34,2694.5,2694.4,0.37104]
[1727474538370,0.345,2694.9,2694.8,0.37099]
[1727474538567,4.8928,2695.3,2694.6,0.92752]
[1727474538862,4.8928,2695.3,2694.7,4.62476748]
[1727474538863,4.5478,2695.3,2694.7,4.62476748]
[1727474539056,4.5478,2695.3,2695.2,0.37093]
[1727474539753,4.5478,2695.3,2695.1,0.37094]
[1727474539961,4.5478,2695.3,2695.2,0.3927]
[1727474540458,0.37095,2695.1,2694.8,0.37098]
[1727474540659,0.37099,2694.8,2694.6,0.3927]
[1727474540852,1.7395,2694.7,2694.6,0.3927]
[1727474541055,1.7395,2694.7,2694.6,0.37101]
[1727474541470,5.4507,2694.7,2694.6,0.37101]
[1727474541663,5.4507,2694.7,2694.5,0.37102]
[1727474541864,3.2078,2694.6,2694.5,0.37102]
[1727474544365,3.2078,2694.6,2694.4,0.37103]
[1727474545069,3.2078,2694.6,2694.5,0.37103]
[1727474546963,3.2078,2694.9,2694.6,0.37101]
[1727474547164,3.2078,2694.9,2694.8,0.37099]
[1727474547561,4.5478,2694.9,2694.8,0.37099]
[1727474549165,1.34,2694.9,2694.8,0.37099]
[1727474550667,5.0504,2694.9,2694.4,3.2078]
[1727474550966,1.34,2694.5,2694.3,0.37106]
[1727474551167,3.9951,2694.4,2694.3,0.37106]
[1727474553174,3.9951,2694.4,2694.1,0.3746]
[1727474553376,1.34,2694.3,2694.1,0.74567]
[1727474553569,1.34,2694.3,2694.2,0.37107]
[1727474553771,1.34,2694.3,2694.1,0.74567]
[1727474554677,1.71107,2694.3,2693.6,1.76885794]
[1727474554876,1.34,2694.0,2693.7,0.7921]
[1727474555179,1.34,2694.0,2693.9,0.37111]
[1727474555577,1.34,2694.0,2693.8,0.37112]
[1727474555885,1.7107,2694.0,2693.8,0.37112]
[1727474558782,1.7107,2694.0,2693.9,0.37111]
[1727474559080,3.2078,2694.1,2694.0,0.3711]
[1727474559280,4.5478,2694.1,2693.8,3.90347332]
[1727474559484,1.34,2693.9,2693.8,0.37112]
[1727474559881,1.34,2693.9,2693.7,0.3906]
[1727474561182,1.34,2693.9,2693.4,0.37117]
[1727474561183,3.57893,2693.8,2693.4,0.37117]
[1727474561377,1.34,2693.5,2693.3,0.76588]
[1727474562284,1.34,2693.5,2693.4,0.37118]
[1727474562677,4.5478,2693.8,2693.3,0.3947]
[1727474562873,4.5478,2693.8,2693.6,0.37115]
[1727474563073,3.2078,2693.8,2693.6,0.37115]
[1727474564384,3.2078,2693.8,2693.7,0.77364]
[1727474565787,3.2078,2693.8,2693.7,0.4025]
[1727474565975,8.63092,2693.8,2693.5,0.37116]
[1727474566179,0.37114,2693.7,2693.5,0.37116]
[1727474566983,0.37115,2693.7,2693.4,0.37117]
[1727474567186,0.37115,2693.7,2693.4,0.37118]
[1727474567386,0.37115,2693.7,2693.5,0.37116]
[1727474569685,3.2078,2693.6,2693.5,0.37116]
[1727474571281,0.37115,2693.7,2693.5,0.37116]
[1727474571486,3.2078,2693.6,2693.5,0.37116]
[1727474571685,0.086,2694.0,2693.5,13.4078]
[1727474571885,0.086,2694.0,2693.9,7.4067]
[1727474572087,0.086,2694.4,2694.3,0.37106]
[1727474572287,3.94671,2694.7,2693.9,13.03559]
[1727474572288,3.94671,2694.7,2694.4,0.37104]
[1727474572483,0.37102,2694.6,2694.3,0.37105]
[1727474572682,6.84671,2694.7,2694.4,0.37104]
[1727474573190,6.84671,2694.7,2694.1,0.345]
[1727474573191,0.37102,2694.6,2694.1,0.345]
[1727474573387,3.2078,2694.7,2694.6,0.37101]
[1727474573593,0.97079227,2694.9,2694.7,0.371]
[1727474573594,0.3783,2694.9,2694.7,0.371]
[1727474574102,0.3783,2694.9,2694.7,0.37099]
[1727474577294,3.5788,2694.8,2694.5,0.75323]
[1727474577597,3.5788,2694.8,2694.5,0.3822]
[1727474578890,2.9,2694.6,2694.4,0.345]
[1727474579090,3.57883,2694.5,2694.1,0.345]
[1727474579292,0.3909,2694.4,2694.1,0.345]
[1727474579497,0.3909,2694.4,2694.1,0.37107]
[1727474581992,0.3909,2694.4,2694.2,0.37106]
[1727474582191,0.3909,2694.4,2694.3,0.37106]
[1727474582410,0.371,2694.7,2694.4,0.37104]
[1727474582601,0.371,2694.7,2694.0,0.7908]
[1727474582602,0.3912,2694.7,2694.5,0.3979]
[1727474583300,0.3912,2694.7,2694.5,0.76893]
[1727474583600,3.57881,2694.6,2694.5,0.3979]
[1727474583898,9.819,2694.6,2694.2,0.345]
[1727474584203,0.37104,2694.5,2694.2,0.37107]
[1727474585204,6.47883,2694.6,2694.1,3.6057]
[1727474585394,6.47883,2694.6,2694.3,0.37105]
[1727474585589,0.37103,2694.5,2694.3,0.37105]
[1727474585790,0.37103,2694.5,2694.2,0.37106]
[1727474585997,2.9,2694.4,2694.1,0.3979]
[1727474586199,2.9,2694.4,2693.9,0.345]
[1727474586200,0.3759,2694.3,2693.9,0.345]
[1727474586391,0.7783,2694.3,2694.1,0.37108]
[1727474586596,1.14936,2694.3,2694.0,0.37109]
[1727474587700,0.37108,2694.2,2693.9,0.37111]
[1727474588903,0.37108,2694.2,2693.8,0.75201]
[1727474589111,3.57889,2694.1,2693.8,0.75201]
[1727474590701,3.57889,2694.1,2693.9,0.37111]
[1727474591307,3.2078,2694.1,2693.9,0.37111]
[1727474592901,3.57888,2694.1,2693.9,0.37111]
[1727474594903,3.57888,2694.1,2693.8,0.3809]
[1727474594904,3.2078,2694.1,2693.8,0.3809]
[1727474595206,3.57889,2694.1,2693.9,0.37111]
[1727474596414,0.7783,2694.3,2693.8,3.5887]
[1727474596708,1.14936,2694.3,2694.1,0.37108]
[1727474597404,2.12015227,2694.3,2694.1,0.37108]
[1727474598298,1.74909227,2694.3,2694.1,0.37108]
[1727474598494,2.12015227,2694.3,2694.1,0.37108]
[1727474599206,0.3711,2694.0,2693.8,0.75202]
[1727474599399,0.3671,2693.9,2693.8,0.75202]
[1727474599600,3.2671,2693.9,2693.6,1.34355794]
[1727474599805,3.6103,2693.8,2693.5,0.743]
[1727474600005,3.6103,2693.8,2693.5,0.398]
[1727474600200,0.4025,2693.8,2693.7,0.37114]
[1727474601002,0.3671,2693.9,2693.7,0.37114]
[1727474601198,4.64889227,2694.1,2693.5,1.37185794]
[1727474601397,2.9,2693.9,2693.5,1.37185794]
[1727474601603,3.57894,2693.7,2693.5,0.76916]
[1727474602110,0.3824,2693.6,2693.5,0.76916]
[1727474603310,0.3824,2693.6,2693.2,2.77801122]
[1727474603507,0.75547,2693.5,2693.2,0.39]
[1727474603702,3.96327,2693.5,2693.2,0.39]
[1727474604611,3.96327,2693.5,2693.3,0.37119]
[1727474605416,0.75547,2693.5,2693.3,0.37119]
[1727474606211,0.37119,2693.4,2693.2,0.39]
[1727474606808,0.3843,2693.5,2693.3,0.37119]
[1727474607114,0.3843,2693.5,2693.4,0.37118]
[1727474607709,0.3843,2693.5,2693.3,0.37119]
[1727474608107,0.3843,2693.5,2693.2,0.7612]
[1727474608108,3.96327,2693.5,2693.2,0.7612]
[1727474608307,3.96327,2693.5,2693.3,0.37119]
[1727474608515,3.5921,2693.5,2693.3,0.37119]
[1727474608710,0.3843,2693.5,2693.3,0.37119]
[1727474609513,0.3843,2693.5,2693.4,0.37118]
[1727474611421,0.3843,2693.5,2693.3,0.37118]
[1727474611718,0.3843,2693.5,2693.4,0.37118]
[1727474616826,0.3843,2693.5,2693.2,0.39]
[1727474616827,0.75547,2693.5,2693.3,0.37118]
[1727474617227,0.3843,2693.5,2693.4,0.37118]
[1727474618424,0.3824,2693.6,2693.5,0.37117]
[1727474623828,0.4675,2693.9,2693.7,0.37114]
[1727474624133,0.4675,2693.9,2693.6,0.37114]
[1727474624134,1.10863,2693.8,2693.6,0.37114]
[1727474624828,0.7375,2693.8,2693.7,0.37114]
[1727474625324,1.10862,2693.8,2693.7,0.37114]
[1727474625525,0.7375,2693.8,2693.7,0.37114]
[1727474625728,0.97079227,2694.0,2693.5,0.3919]
[1727474626022,4.6652171,2694.1,2693.5,0.3919]
[1727474626023,0.086,2694.3,2694.2,0.37107]
[1727474626222,1.37034859,2694.3,2694.0,0.37109]
[1727474626419,0.96974859,2694.2,2694.1,0.37108]
[1727474626626,1.37034859,2694.3,2694.1,0.37108]
[1727474627023,1.37034859,2694.3,2693.9,1.1183]
[1727474627225,1.37034859,2694.3,2693.9,2.09215794]
[1727474627226,0.4006,2694.3,2693.9,2.09215794]
[1727474628532,0.4006,2694.3,2694.2,0.37107]
[1727474628929,0.4006,2694.3,2694.1,0.37108]
[1727474629232,0.4006,2694.3,2694.2,0.37107]
[1727474633528,0.77166,2694.3,2694.1,0.37108]
[1727474634032,3.97946,2694.3,2694.1,0.37108]
[1727474634624,3.6084,2694.3,2693.9,2.09215794]
[1727474634823,0.37108,2694.2,2693.9,1.4894]
[1727474635535,0.37108,2694.2,2694.0,0.3711]
[1727474636636,0.37108,2694.1,2694.0,0.3711]
[1727474637735,3.57888,2694.2,2694.0,0.3711]
[1727474638626,0.37111,2693.9,2693.8,1.31885794]
[1727474638838,0.37112,2693.9,2693.7,0.37114]
[1727474639039,1.34083859,2694.1,2693.9,0.37111]
[1727474639246,0.96974859,2694.1,2694.0,0.3711]
[1727474639538,0.96974859,2694.1,2693.6,1.68975794]
[1727474639539,3.2078,2694.2,2694.1,0.37108]
[1727474639931,3.57887,2694.2,2694.1,0.37108]
[1727474640131,3.57887,2694.2,2694.0,0.37109]
[1727474640439,3.57887,2694.2,2694.1,0.37108]
[1727474640830,3.57887,2694.2,2694.0,0.75039]
[1727474641141,0.37107,2694.2,2694.0,0.75039]
[1727474641541,4.55204859,2694.3,2694.0,0.3793]
[1727474641743,0.3745,2694.3,2694.0,0.3793]
[1727474642046,0.3745,2694.3,2694.2,0.37107]
[1727474642540,0.3745,2694.3,2694.1,0.37108]
[1727474643439,0.3745,2694.3,2694.0,0.75039]
[1727474643741,0.37108,2694.1,2694.0,0.3793]
[1727474643941,0.37108,2694.2,2694.0,0.3793]
[1727474644245,0.37107,2694.2,2694.0,0.7504]
[1727474644443,0.37107,2694.2,2694.0,0.3793]
[1727474644837,0.37107,2694.2,2694.0,0.7504]
[1727474645238,0.37107,2694.2,2694.0,0.3793]
[1727474645434,0.37107,2694.2,2694.0,0.75039]
[1727474645643,0.37107,2694.2,2694.0,0.3793]
[1727474646436,0.37107,2694.2,2694.0,0.75039]
[1727474648433,3.05530859,2694.3,2694.0,0.75039]
[1727474648633,2.08556,2694.3,2694.0,0.75039]
[1727474648844,3.05530859,2694.3,2694.0,0.75039]
[1727474649344,0.96974859,2694.4,2694.3,1.29871]
[1727474649546,0.086,2694.8,2694.7,0.371]
[1727474649747,0.086,2694.8,2694.5,0.92755]
[1727474649748,0.3948,2694.9,2694.8,0.37099]
[1727474649949,0.3948,2694.9,2694.5,2.31052615]
[1727474650152,0.3948,2694.9,2694.5,0.97052615]
[1727474650355,0.3948,2694.9,2694.7,0.37099]
[1727474650647,0.3948,2694.9,2694.4,5.52448923]
[1727474650648,0.3948,2694.9,2694.8,0.37099]
[1727474650946,0.96974859,2695.1,2694.9,0.37097]
[1727474651146,0.96974859,2695.1,2695.0,0.37096]
[1727474651341,0.96974859,2695.1,2694.9,0.37096]
[1727474651540,0.96974859,2695.1,2695.0,0.37096]
[1727474652046,0.7942,2695.2,2695.1,0.37095]
[1727474653343,0.7942,2695.2,2695.0,0.37095]
[1727474654742,0.7942,2695.2,2694.9,0.793]
[1727474654950,0.7942,2695.2,2695.0,0.37095]
[1727474655353,1.16513,2695.2,2695.0,0.37095]
[1727474657852,0.7942,2695.2,2695.1,0.37095]
[1727474658655,0.7942,2695.2,2695.0,0.37095]
[1727474658849,0.7942,2695.2,2695.1,0.37095]
[1727474660355,0.7942,2695.2,2695.0,0.37095]
[1727474660551,1.16513,2695.2,2695.0,0.37095]
[1727474662962,0.7942,2695.2,2695.0,0.37095]
[1727474666665,0.37095,2695.1,2694.9,0.37097]
[1727474667662,4.37294,2695.2,2694.9,0.37097]
[1727474668052,0.7942,2695.2,2695.1,0.37095]
[1727474668353,0.3948,2695.2,2695.1,0.37095]
[1727474671465,0.3948,2695.2,2694.9,4.10697866]
[1727474671655,0.3948,2695.2,2695.1,0.37095]
[1727474672654,0.76573,2695.2,2695.0,0.37095]
[1727474672854,0.086,2695.4,2695.3,0.37092]
[1727474673068,3.2078,2695.7,2695.6,0.37088]
[1727474673262,3.2078,2695.7,2695.3,2.135]
[1727474673263,0.37086,2695.8,2695.5,1.16588]
[1727474673462,0.76384,2695.9,2695.6,0.37088]
[1727474673657,0.393,2695.9,2695.5,0.37088]
[1727474673863,0.37088,2695.6,2695.4,0.3876]
[1727474674061,0.3663,2695.5,2695.4,0.3876]
[1727474674661,0.3663,2695.5,2695.4,0.3709]
[1727474674860,0.3663,2695.5,2695.4,1.7276]
[1727474675068,0.3663,2695.5,2695.4,2.0985]
[1727474675363,0.3737,2695.7,2695.5,0.37088]
[1727474675958,0.3663,2695.8,2695.4,1.7276]
[1727474676160,0.3663,2695.8,2695.6,0.37087]
[1727474676964,0.3663,2695.8,2695.4,1.7276]
[1727474677174,0.37088,2695.6,2695.4,0.3876]
[1727474677378,0.3934,2695.5,2695.4,0.3876]
[1727474677664,0.3934,2695.5,2695.2,1.176]
[1727474677869,0.37086,2695.7,2695.4,0.3709]
[1727474678059,0.3934,2695.7,2695.4,0.3709]
[1727474678264,0.3934,2695.7,2695.3,2.10781]
[1727474678464,0.37088,2695.6,2695.3,2.10781]
[1727474678664,0.76427,2695.7,2695.4,0.3709]
[1727474679672,0.37088,2695.6,2695.3,2.10781]
[1727474679858,0.37088,2695.6,2695.4,0.3709]
[1727474680565,0.3934,2695.7,2695.3,1.7369]
[1727474680762,0.37088,2695.6,2695.4,0.3709]
[1727474680968,0.37088,2695.6,2695.3,2.9384]
[1727474680969,0.3725,2695.5,2695.3,2.9384]
[1727474681168,0.3725,2695.5,2695.3,3.30931]
[1727474681563,0.3725,2695.5,2695.4,0.3709]
[1727474681963,0.7434,2695.5,2695.3,0.8034]
[1727474682164,0.3725,2695.5,2695.3,0.8034]
[1727474682369,0.3788,2695.4,2695.3,1.17431]
[1727474682758,0.3725,2695.5,2695.3,0.3969]
[1727474682959,6.5074015,2696.2,2695.6,0.37088]
[1727474682960,0.7582,2695.8,2695.6,0.37088]
[1727474683160,0.7582,2695.8,2695.7,0.3752]
[1727474683863,0.3731,2696.0,2695.7,0.3752]
[1727474684064,0.3788,2695.8,2695.7,0.3752]
[1727474684665,0.3788,2695.8,2695.7,0.74606]
[1727474685265,0.086,2696.4,2695.8,0.92713]
[1727474685570,0.3708,2696.2,2696.0,1.71081]
[1727474685772,0.75019,2696.3,2696.1,0.37081]
[1727474686371,0.3794,2696.3,2696.2,0.37079]
[1727474686569,0.3794,2696.3,2696.1,0.3708]
[1727474686867,0.3794,2696.3,2696.1,0.3799]
[1727474686868,0.37079,2696.2,2696.1,0.3799]
[1727474687067,0.7643,2696.2,2696.1,0.75071]
[1727474687663,0.7643,2696.2,2696.0,0.37081]
[1727474688175,1.1351,2696.2,2696.0,0.37081]
[1727474688474,4.3429,2696.2,2695.9,0.75073]
[1727474688666,0.37081,2696.1,2695.9,0.75073]
[1727474689572,4.3429,2696.2,2695.9,0.75073]
[1727474689871,0.7643,2696.2,2695.9,0.3799]
[1727474690060,1.1351,2696.2,2695.9,0.75073]
[1727474690264,4.3429,2696.2,2695.9,0.75073]
[1727474690465,0.37081,2696.1,2695.9,0.3799]
[1727474690666,3.9721,2696.2,2695.9,0.75072]
[1727474690867,0.7643,2696.2,2695.9,0.75072]
[1727474691070,3.9721,2696.2,2695.9,0.75072]
[1727474691675,0.7643,2696.2,2695.9,0.75072]
[1727474692174,3.9721,2696.2,2695.9,0.3799]
[1727474692366,3.9721,2696.2,2695.9,0.75072]
[1727474692686,4.3429,2696.2,2695.9,0.75072]
[1727474693470,0.37081,2696.1,2695.9,0.3799]
[1727474693676,3.9721,2696.2,2695.6,0.7994]
[1727474693872,0.37081,2696.1,2695.8,0.37085]
[1727474694187,0.37083,2696.0,2695.7,0.74536]
[1727474694485,0.3871,2695.9,2695.7,0.74536]
[1727474694777,0.75794,2695.9,2695.7,0.74536]
[1727474694974,0.76825,2695.8,2695.7,0.3745]
[1727474695167,0.76825,2695.8,2695.6,1.17027]
[1727474695168,0.3974,2695.8,2695.4,0.9691326]
[1727474695371,0.3974,2695.8,2695.6,0.75667]
[1727474695978,0.3974,2695.8,2695.7,0.37086]
[1727474696377,0.7814,2695.8,2695.7,0.37086]
[1727474696779,0.37086,2695.7,2695.6,0.3858]
[1727474696975,0.37087,2695.7,2695.3,3.6123]
[1727474697172,0.37087,2695.7,2695.3,0.7903]
[1727474697377,0.37087,2695.7,2695.4,0.3709]
[1727474697875,0.7814,2695.8,2695.3,0.7903]
[1727474698179,0.37088,2695.6,2695.4,0.3709]
[1727474698483,0.3873,2695.5,2695.1,1.3141326]
[1727474698787,0.3873,2695.5,2695.1,0.37094]
[1727474698788,0.75632,2695.4,2695.1,0.37094]
[1727474698988,0.3812,2695.3,2695.1,0.37094]
[1727474699185,0.75212,2695.3,2695.0,0.37095]
[1727474700277,0.75213,2695.3,2695.0,0.37096]
[1727474700580,0.75213,2695.3,2695.1,0.37095]
[1727474700581,0.3812,2695.3,2695.1,0.37095]
[1727474700885,0.3854,2695.4,2695.3,0.37092]
[1727474701179,0.3854,2695.4,2695.0,6.0978]
[1727474701479,0.3854,2695.4,2695.3,0.37092]
[1727474703782,0.3854,2695.4,2695.0,3.2078]
[1727474703987,0.3854,2695.4,2695.3,0.37092]
[1727474704877,0.75631,2695.4,2695.2,0.3928]
[1727474705073,0.75631,2695.4,2694.9,1.7781326]
[1727474705074,3.2754,2695.4,2694.9,1.3470326]
[1727474705279,3.57874,2695.2,2694.9,0.74887]
[1727474705479,0.3908,2695.1,2694.9,1.14167]
[1727474705685,0.3908,2695.1,2694.9,0.7707]
[1727474705888,0.74506,2695.0,2694.7,4.5479226]
[1727474706091,0.3681,2694.9,2694.7,4.5479226]